Cogmind - Beta 16 @@@ ROGUE MODE // 2025.11.20 @ 23:44:39 Player: naththebg Result: Destroyed by G-73 Enforcer with Phase Gun Performance ------------- Evolutions (8) 4000 Regions Visited (17) 3400 Robots Destroyed (240) 1200 Value Destroyed (10337) 10337 Prototype IDs (67) 1340 Alien Tech Used (0) 0 Bonus (6252) 6252 TOTAL SCORE: 26529 Bonus ------- Triggered High Security 500 High Alert Combat Kills 1903 Follower Combat Kills 1334 Aligned with FarCom 300 Built Enhanced Grunts 300 Met R17 at Cetus 500 Met R17 at Research 2000 Scanned by Researcher 500 Friendly Fire -1085 Cogmind --------- Core Integrity 0/1450 Matter 207/300 Energy 78/100 System Corruption 29% Temperature Cool (9) Movement Core (50) Location -2/Research Parts ------- > --- POWER (1) -------- (None) > --- PROPULSION (5) --- (None) > --- UTILITY (12) ----- Experimental Signal Interpreter Improved Melee Analysis Suite Advanced Melee Analysis Suite > --- WEAPON (5) ------- (None) > --- INVENTORY (5) ---- Improved Energy Well (400) Experimental Signal Interpreter Advanced Force Field Trap Reconfigurator Datajack Peak State ------------ > --- POWER ------------ Quantum Reactor > --- PROPULSION ------- Myomer Leg Myomer Leg Myomer Leg Centrium Leg Centrium Leg > --- UTILITY ---------- Large Storage Unit Improved Energy Well Experimental Signal Interpreter Improved Melee Analysis Suite Improved Melee Analysis Suite Core Analyzer Force Booster Advanced Reaction Control System Centrium Medium Armor Plating Centrium Medium Armor Plating Centrium Medium Armor Plating Advanced Shield Generator > --- WEAPON ----------- Advanced Micro-nuke Launcher Chainsword Kinetic Spear Kinetic Spear Force Lance > --- INVENTORY -------- Improved Carbon-fiber Leg Improved VSS Leg Myomer Leg Myomer Leg Myomer Leg Myomer Leg Myomer Leg Advanced Signal Interpreter Centrium Light Armor Plating Trap Reconfigurator Advanced Micro-nuke Launcher Datajack Powered Hammer [Rating: 162] Favorites ----------- Power Heavy Ion Engine Engine Heavy Ion Engine Power Core Enhanced Nuclear Core Reactor Antimatter Reactor Propulsion Myomer Leg Leg Myomer Leg Wheel Wheel Utility Core Analyzer Device Advanced Reaction Control System Storage Medium Storage Unit Processor Core Analyzer Hackware System Shield Protection Improved Powered Armor Weapon Katana Energy Gun Medium Laser Energy Cannon Beam Cannon Launcher Rocket Launcher Impact Weapon Maul Slashing Weapon Katana Piercing Weapon Force Lance Special Melee Weapon Datajack Build | -11 -10 -10 -10 -9 -8 -7 -6 -5 -4 -4 -4 -4 -4 -4 -4 -3 -2 ------- Run | Yrd Mat Min Exi Min Mat Fac Fac Fac Fac Was Fac Ext Cet Arc Hub Res Res Slots Evolved 16 | . . . . . 4 2 2 2 2 . . . . . . 2 2 Power . | . . . . . . . . . . . . . . . . . . Propulsion 3 | . . . . . 1 . . 1 . . . . . . . 1 . Utility 10 | . . . . . 2 2 1 1 2 . . . . . . . 2 Weapon 3 | . . . . . 1 . 1 . . . . . . . . 1 . Parts Attached 142 | 6 7 2 . 1 15 9 13 7 12 . 11 6 2 1 3 25 22 Power 10 | 1 . 1 . . 1 . 1 1 1 . . 1 . 1 . . 2 Engine 3 | 1 . 1 . . 1 . . . . . . . . . . . . Core 1 | . . . . . . . . 1 . . . . . . . . . Reactor 6 | . . . . . . . 1 . 1 . . 1 . 1 . . 2 Propulsion 38 | 2 2 . . 1 4 2 3 . 3 . 2 3 . . 1 9 6 Treads . | . . . . . . . . . . . . . . . . . . Leg 36 | 2 2 . . . 3 2 3 . 3 . 2 3 . . 1 9 6 Wheel 2 | . . . . 1 1 . . . . . . . . . . . . Hover . | . . . . . . . . . . . . . . . . . . Flight . | . . . . . . . . . . . . . . . . . . Utility 65 | 1 2 . . . 5 6 6 3 8 . 8 1 2 . 1 11 11 Device 23 | . . . . . 1 2 2 1 3 . 4 . . . 1 5 4 Storage 5 | 1 1 . . . . . . . 1 . 1 . . . . 1 . Processor 19 | . 1 . . . 2 1 4 2 . . 2 1 1 . . 3 2 Hackware 1 | . . . . . . 1 . . . . . . . . . . . Protection 17 | . . . . . 2 2 . . 4 . 1 . 1 . . 2 5 Artifact . | . . . . . . . . . . . . . . . . . . Weapon 29 | 2 3 1 . . 5 1 3 3 . . 1 1 . . 1 5 3 Energy Gun 2 | 2 . . . . . . . . . . . . . . . . . Energy Cannon 1 | . 1 . . . . . . . . . . . . . . . . Ballistic Gun . | . . . . . . . . . . . . . . . . . . Ballistic Cannon . | . . . . . . . . . . . . . . . . . . Launcher 7 | . . . . . 2 . . 1 . . . . . . 1 1 2 Special Weapon . | . . . . . . . . . . . . . . . . . . Impact Weapon 7 | . 2 . . . 2 . 1 1 . . . . . . . 1 . Slashing Weapon 7 | . . 1 . . 1 1 2 . . . . . . . . 1 1 Piercing Weapon 3 | . . . . . . . . . . . 1 . . . . 2 . Special Melee Weapon 2 | . . . . . . . . 1 . . . 1 . . . . . Unidentified Prototypes 21 | . . . . . 2 . 1 2 1 . . . 1 . 2 9 3 Parts Lost 44 | . . 1 . 2 1 . . . 2 . 1 5 . 1 1 3 27 Power 4 | . . 1 . 1 . . . . . . . . . 1 . . 1 Propulsion 11 | . . . . 1 1 . . . . . . . . . . 1 8 Utility 24 | . . . . . . . . . 2 . 1 5 . . 1 1 14 Weapon 5 | . . . . . . . . . . . . . . . . 1 4 Highest Loss Streak 11 | . . 1 . 2 1 . . . 1 . 1 3 . 1 1 2 11 To Critical Strikes . | . . . . . . . . . . . . . . . . . . Average Backups 11 | 4 8 9 10 9 9 9 9 7 9 10 11 13 14 14 14 14 12 Power . | . 1 . . . . . . . . . . . 1 . . . . Propulsion 3 | 2 4 3 3 2 . 2 2 1 3 3 2 5 6 6 6 5 3 Utility 3 | . . . . 1 2 3 3 3 2 4 5 5 4 5 5 5 5 Weapon 3 | 1 2 6 6 6 6 4 2 2 2 2 2 2 2 2 2 2 1 Tool/Special . | . . . . . . . . . . . . . . . . . . Unused Backups 21 | . 2 1 1 . 3 3 1 . 1 . 1 . 1 . . 3 4 Power 2 | . . . . . 1 . . . . . . . 1 . . . . Propulsion 6 | . . 1 . . 2 1 . . . . . . . . . 1 1 Utility 7 | . 1 . . . . . 1 . 1 . 1 . . . . . 3 Weapon 6 | . 1 . 1 . . 2 . . . . . . . . . 2 . Tool/Special . | . . . . . . . . . . . . . . . . . . Average Slot Usage (%) 93 | . 91 98 100 97 92 94 92 93 94 100 99 90 93 94 93 92 85 Engine 3 | . 14 12 14 11 5 7 6 1 . . . . . . . . . Reactor 2 | . . . . . . . . . . 5 5 5 5 5 5 4 3 Leg 21 | . 28 28 28 25 19 23 20 23 21 21 21 21 21 21 21 23 20 Device 6 | . . . . . 1 1 6 8 14 10 10 12 10 10 9 4 6 Storage 7 | . 14 14 14 14 9 7 6 5 5 10 10 10 6 5 5 4 4 Processor 16 | . 6 14 14 14 16 22 19 19 15 15 14 7 13 15 15 15 17 Protection 9 | . . . . . 5 8 5 5 10 15 15 11 14 15 15 17 11 Impact Weapon 5 | . 9 15 14 14 11 7 6 5 5 5 . . . . . 3 3 Slashing Weapon 12 | . . 12 14 14 13 15 19 16 15 15 15 14 11 15 15 8 3 Piercing Weapon 2 | . . . . . . . . . . . 4 5 5 5 5 6 10 Peak Build Rating 162 | 6 10 12 13 13 33 47 57 71 101 101 115 115 117 118 120 142 162 Average Rating 79 | 3 7 11 12 12 27 42 54 66 86 101 109 106 114 117 118 131 139 On Entrance 64 | . 6 10 12 13 12 33 44 57 69 101 101 113 107 117 118 112 142 Avg Prop Armor Cover (%) 9 | . . . . 14 10 . . . . . . . . . . . 2 Naked Turns . | . . . . . . . . . . . . . . . . . . Heaviest Build 109 | 12 19 19 18 18 33 45 50 52 89 81 94 94 95 96 96 105 109 Greatest Support 135 | 20 20 20 20 20 40 45 51 66 93 93 95 98 98 98 98 125 135 Greatest Overweight (x) 1 | . . . . 1 1 . . . . . 1 . . . . . 1 Average Overweight (x) . | . . . . . . . . . . . . . . . . . . Largest Inventory Capacity 15 | 8 10 10 10 10 10 10 10 10 10 10 15 15 15 15 15 15 15 Average Capacity 12 | 6 9 10 10 10 10 10 10 10 10 10 13 15 15 15 15 15 14 Most Carried 15 | 8 10 10 10 10 10 10 10 9 10 10 15 15 15 15 15 15 15 Average Carried 11 | 5 8 9 10 9 9 9 9 7 9 10 12 14 14 14 14 14 12 Final Capacity 15 | 8 10 10 10 10 10 10 10 10 10 10 15 15 15 15 15 15 5 Final Carried 15 | 6 10 10 10 9 10 10 10 9 10 10 15 14 15 14 15 15 5 Class Distribution -------------------- 59% | Scientist-Gladiator 15% | Gladiator 14% | Mutant 6% | Scavenger-Gladiator 4% | Commander-Gladiator Dominant Class ---------------- Mutant | -10/Materials Mutant | -10/Mines Mutant | -10/Exiles Mutant | -9/Mines Gladiator | -8/Materials Gladiator | -7/Factory Scientist-Gladiator | -6/Factory Scientist-Gladiator | -5/Factory Scientist-Gladiator | -4/Factory Scientist-Gladiator | -4/Waste Scientist-Gladiator | -4/Factory Scientist-Gladiator | -4/Extension Commander-Gladiator | -4/Cetus Commander-Gladiator | -4/Archives Scientist-Gladiator | -4/Hub_04(d) Scientist-Gladiator | -3/Research Scientist-Gladiator | -2/Research Resources | -11 -10 -10 -10 -9 -8 -7 -6 -5 -4 -4 -4 -4 -4 -4 -4 -3 -2 ----------- Run | Yrd Mat Min Exi Min Mat Fac Fac Fac Fac Was Fac Ext Cet Arc Hub Res Res Matter Collected 3063 | 196 137 27 . 39 286 130 188 173 65 . 370 181 95 42 93 380 661 Remotely . | . . . . . . . . . . . . . . . . . . Salvage Created 11933 | . 418 160 . . 674 481 781 288 1318 . 795 1395 242 . 695 1678 3008 Parts 510 | . 15 8 . . 30 21 29 10 23 . 47 64 11 . 26 71 155 Haulers Intercepted 26 | . 2 . . . 4 2 3 1 2 . . . . . 2 6 4 Recyclers Shooed 3 | . . 1 . . . . . . . . . 1 . . . . 1 Parts Field Recycled . | . . . . . . . . . . . . . . . . . . Retrieved Matter . | . . . . . . . . . . . . . . . . . . Parts Self-Destructed . | . . . . . . . . . . . . . . . . . . Prevented . | . . . . . . . . . . . . . . . . . . Parts Restored . | . . . . . . . . . . . . . . . . . . Kills | -11 -10 -10 -10 -9 -8 -7 -6 -5 -4 -4 -4 -4 -4 -4 -4 -3 -2 ------- Run | Yrd Mat Min Exi Min Mat Fac Fac Fac Fac Was Fac Ext Cet Arc Hub Res Res Combat Hostiles Destroyed 150 | . 5 4 . . 12 7 9 4 3 . 12 16 3 . 7 14 54 Melee 104 | . 1 1 . . 7 5 7 4 2 . 12 16 3 . 7 14 25 Cannons 4 | . 4 . . . . . . . . . . . . . . . . AOE 31 | . . . . . 3 . . . . . . . . . . . 28 Classes Destroyed 16 | . 5 1 . . 4 1 1 . 1 . . . . . . 1 2 Worker 23 | . . . . . 2 2 3 . 2 . . . . . 1 4 9 Builder 10 | . . . . . . . . . 1 . . 3 . . . . 6 Tunneler 5 | . . 1 . . . . . . . . 2 . . . . . 2 Hauler 26 | . 2 . . . 4 2 3 1 2 . . . . . 2 6 4 Recycler 10 | . 1 . . . . . . . 7 . . 2 . . . . . Operator 7 | . 1 . . . 1 . . 1 1 . . 1 . . . . 2 Watcher 8 | . 1 . . . 2 1 . . . . . 1 1 . 1 . 1 Swarmer 33 | . . . . . 3 1 2 1 . . 1 3 . . . . 22 Saboteur 1 | . . . . . . . . . . . . . . . . . 1 Grunt 41 | . 5 4 . . 4 3 1 1 . . 2 5 . . 2 3 11 Brawler 1 | . . . . . . . . . . . . . . . . . 1 Duelist 5 | . . . . . . . 1 . . . 1 1 . . . . 2 Sentry 19 | . . . . . 4 1 2 . 1 . 2 4 . . 3 . 2 Hunter 20 | . . . . . 1 . . . 2 . . 3 . . 1 9 4 Programmer 26 | . . . . . . 2 3 2 . . 6 . . . 1 1 11 Cetus Guard 3 | . . . . . . . . . . . . . 3 . . . . Striker 1 | . . . . . . . . . . . . . . . . 1 . Best Kill Streak 19 | . 3 4 . . 7 3 1 2 4 . 3 5 3 . 4 3 19 Combat Bots Only 9 | . 2 4 . . 3 3 1 2 1 . 3 3 2 . 3 2 9 Max Kills in Single Turn 6 | . 1 1 . . 3 1 1 1 1 . 1 1 1 . 1 1 6 Gunslinging . | . . . . . . . . . . . . . . . . . . Exploded 6 | . . . . . 2 . . . . . . . . . . . 6 Melee 1 | . 1 1 . . 1 1 1 1 1 . 1 1 1 . 1 1 1 Uniques/NPCs Destroyed 1 | . . . . . . . . . . . . . . . . 1 . Revision 17++ (-3/Research) Combat | -11 -10 -10 -10 -9 -8 -7 -6 -5 -4 -4 -4 -4 -4 -4 -4 -3 -2 -------- Run | Yrd Mat Min Exi Min Mat Fac Fac Fac Fac Was Fac Ext Cet Arc Hub Res Res Hostile Shots Fired 1224 | . 23 10 . 4 37 54 98 21 69 1 56 142 9 19 55 152 474 Missed 480 | . 3 5 . . 10 20 37 10 34 1 29 56 3 12 35 72 153 Deflected 3 | . . . . . . . . . . . . . . . . . 3 Hits 744 | . 20 5 . 4 27 34 61 11 35 . 27 86 6 7 20 80 321 Melee 42 | . . . . . . . . . . . 2 2 . . . 1 37 Projectile 702 | . 20 5 . 4 27 34 61 11 35 . 25 84 6 7 20 79 284 AOE 6 | . . . . 5 . . . . . . . . . . . . 1 Critical Strikes 37 | . . . . 2 . 1 1 1 1 . 3 6 . . . 1 21 Actively Blocked 3 | . . . . . . . . . . . . . . . . . 3 Part Disruptions 2 | . . . . . . . . . . . . . . . . . 2 Damage Taken 14910 | . 249 61 . 258 385 373 565 244 425 . 705 1772 259 236 495 1480 7403 Core 2241 | . 68 10 . 110 67 43 59 59 11 . 18 166 14 27 40 74 1475 Absorbed by Shields 1044 | . . . . . . . . . 157 . . . 64 . . . 823 Redirected to Shielding 68 | . . . . . . . . . . . . . . . . . 68 Regen/Repaired (Parts) 461 | . . . . . . . 461 . . . . . . . . . . Core Remaining (%) 82 | 100 . . . 24 87 93 93 94 . . . . . . 76 94 . Volleys Fired 57 | . 23 . . . 11 . . . . . . . . . . . 23 Largest 2 | . 2 . . . 1 . . . . . . . . . . . 2 Hottest 110 | . 110 . . . 33 . . . . . . . . . . . 60 Shots Fired 79 | . 44 . . . 11 . . . . . . . . . . . 24 Gun 21 | . 21 . . . . . . . . . . . . . . . . Cannon 23 | . 23 . . . . . . . . . . . . . . . . Launcher 35 | . . . . . 11 . . . . . . . . . . . 24 Special . | . . . . . . . . . . . . . . . . . . Kinetic . | . . . . . . . . . . . . . . . . . . Thermal 44 | . 44 . . . . . . . . . . . . . . . . Explosive 35 | . . . . . 11 . . . . . . . . . . . 24 Electromagnetic . | . . . . . . . . . . . . . . . . . . Robot Hit Streak 6 | . 4 . . . 2 . . . . . . . . . . . 6 Robot Miss Streak 3 | . 3 . . . 2 . . . . . . . . . . . 2 Penetration Max . | . . . . . . . . . . . . . . . . . . Secondary Targets . | . . . . . . . . . . . . . . . . . . Shots Hit Robots 568 | . 29 8 . 2 36 25 38 27 36 . 43 77 15 7 26 66 133 Core Hits 330 | . 15 2 . . 19 8 12 8 11 . 21 30 9 3 16 28 148 Critical Kills 11 | . . . . . 2 2 2 . 3 . . . . . . 2 . Critical Parts Destroyed 20 | . 1 1 . . 3 4 4 2 4 . . . . . . 1 . Critical Strikes 88 | . 3 1 . . 6 6 7 2 7 . 7 11 3 . 5 14 16 Burn 2 | . 2 . . . . . . . . . . . . . . . . Smash 31 | . 1 1 . . 5 6 6 2 7 . . . . . . 3 . Sever 16 | . . . . . 1 . 1 . . . 2 4 1 . 2 3 2 Impale 39 | . . . . . . . . . . . 5 7 2 . 3 8 14 Melee Attacks 726 | . 5 11 . 4 46 38 64 42 53 . 63 90 22 7 47 87 147 Impact 190 | . 5 10 . 3 30 22 28 23 32 . . . . . . 20 17 Slashing 241 | . . 1 . 1 16 16 36 18 21 . 26 34 9 4 20 22 17 Piercing 283 | . . . . . . . . . . . 37 47 11 3 27 45 113 Sneak Attacks 101 | . 2 2 . 1 7 7 8 4 17 . 4 17 1 . 4 17 10 Combat Hostiles 3 | . . . . . . . . . . . . . . . . . 3 Follow-up Attacks 182 | . . 1 . . 11 4 13 6 9 . 19 27 7 4 9 29 43 Damage Inflicted 36127 | . 621 387 . 82 2178 1300 1812 1397 2441 . 1997 3262 546 265 1248 3481 15110 Guns 138 | . 138 . . . . . . . . . . . . . . . . Cannons 246 | . 246 . . . . . . . . . . . . . . . . Explosions 9052 | . . . . . 610 . . . . . . . . . . . 8442 Melee 26452 | . 231 387 . 82 1568 1300 1776 1397 2408 . 1992 3215 546 265 1248 3481 6556 Ramming 239 | . 6 . . . . . 36 . 33 . 5 47 . . . . 112 Kinetic . | . . . . . . . . . . . . . . . . . . Thermal 384 | . 384 . . . . . . . . . . . . . . . . Explosive 9002 | . . . . . 610 . . . . . . . . . . . 8392 Electromagnetic 50 | . . . . . . . . . . . . . . . . . 50 Impact 8073 | . 231 351 . 82 1133 871 965 978 1939 . . . . . . 724 799 Slashing 6047 | . . 36 . . 435 429 811 419 469 . 736 955 199 136 282 700 440 Piercing 12332 | . . . . . . . . . . . 1256 2260 347 129 966 2057 5317 Highest Corruption 28 | . 6 6 6 6 . . . 10 . 15 18 9 9 9 13 9 28 Average Corruption 7 | . 3 6 6 6 . . . 8 . 7 13 9 9 9 9 6 4 Corruption Purged 20 | . . . . . . . . . . . 10 . . . . . 10 Corruption Blocked . | . . . . . . . . . . . . . . . . . . Effects 257 | . 5 14 12 5 . . . 17 . 5 54 37 15 4 21 30 38 Message Errors 69 | . 1 2 3 2 . . . 4 . . 16 11 2 . 5 11 12 Matter Fused 72 | . 3 1 2 1 . . . 6 . 1 16 9 7 3 4 6 13 Heat Flow Errors 28 | . . 1 3 . . . . 2 . 1 3 3 4 . 4 5 2 Energy Discharges 35 | . . 4 1 . . . . 1 . . 6 6 2 . 4 5 6 Parts Rejected 3 | . . . . . . . . . . . 1 1 . . 1 . . Parts Fused 2 | . . . . 2 . . . . . . . . . . . . . Data Loss (minor) 29 | . 1 3 2 . . . . 2 . 2 8 5 . 1 3 1 1 Data Loss (major) 10 | . . 3 . . . . . 1 . . . 2 . . . 2 2 Alerts 4 | . . . 1 . . . . 1 . . 2 . . . . . . Misdirections 3 | . . . . . . . . . . 1 2 . . . . . . Weapon Failures 2 | . . . . . . . . . . . . . . . . . 2 Overload Shots . | . . . . . . . . . . . . . . . . . . Overflow Damage 4881 | . 102 82 . 21 288 415 464 231 793 . 166 426 . . . 333 1560 Projectiles 18 | . 3 . . . . . . . . . . . . . . . 15 Explosions 522 | . . . . . 40 . . . . . . . . . . . 482 Melee 4341 | . 99 82 . 21 248 415 464 231 793 . 166 426 . . . 333 1063 Knockbacks 30 | . . 1 . 1 1 3 1 4 9 . . 1 . . . 1 8 Impact 25 | . . 1 . 1 1 3 1 3 8 . . 1 . . . 1 5 Kinetic . | . . . . . . . . . . . . . . . . . . Secondary 5 | . . . . . . . . 1 1 . . . . . . . 3 Self-Inflicted Damage 606 | . . . . . 20 . . . . . . . . . . . 586 Shots 10 | . . . . . 1 . . . . . . . . . . . 9 Rammed . | . . . . . . . . . . . . . . . . . . Targets Rammed 13 | . 2 . . . . . 3 . 3 . 1 1 . . . . 3 Kicked 13 | . 2 . . . . . 3 . 3 . 1 1 . . . . 3 Crushed . | . . . . . . . . . . . . . . . . . . Highest Temperature 348 | . 348 239 227 . . 6 2 264 . 127 239 255 198 . 205 250 206 Average Temperature 103 | . 121 128 105 . . 6 2 109 . 64 101 102 84 . 76 106 88 Received Heat Transfer 1383 | . 144 36 . . 90 129 87 9 31 . 30 193 25 48 99 30 432 Effects 1 | . 1 . . . . . . . . . . . . . . . . Energy Bleed 1 | . 1 . . . . . . . . . . . . . . . . Siege Activations . | . . . . . . . . . . . . . . . . . . Martial Activations . | . . . . . . . . . . . . . . . . . . Shielding Activations 1 | . . . . . . . . . . . . . . . . . 1 Total Turns 186 | . . . . . . . . . . . . . . . . . 186 Longest Duration 186 | . . . . . . . . . . . . . . . . . 186 Robots Disrupted . | . . . . . . . . . . . . . . . . . . Combat Hostiles . | . . . . . . . . . . . . . . . . . . Robots Corrupted 28 | . . 3 . . 5 4 4 1 7 . . 1 . . . 1 2 Combat Hostiles 11 | . . 3 . . 2 2 2 . 1 . . . . . . . 1 Parts Fried 46 | . 1 3 . . 6 4 6 1 20 . . . . . 1 1 3 Impact Corruptions 87 | . 1 5 . 1 10 10 14 10 25 . . 1 . . . 3 7 Robots Melted . | . . . . . . . . . . . . . . . . . . Combat Hostiles . | . . . . . . . . . . . . . . . . . . Parts Melted 3 | . 3 . . . . . . . . . . . . . . . . Heat Transferred 1073 | . 1073 . . . . . . . . . . . . . . . . Parts Sabotaged 9 | . . . . . . . . . . . . . . . . . 9 Parts Stolen . | . . . . . . . . . . . . . . . . . . Parts Stripped . | . . . . . . . . . . . . . . . . . . Power Chain Reactions . | . . . . . . . . . . . . . . . . . . Alert | -11 -10 -10 -10 -9 -8 -7 -6 -5 -4 -4 -4 -4 -4 -4 -4 -3 -2 ------- Run | Yrd Mat Min Exi Min Mat Fac Fac Fac Fac Was Fac Ext Cet Arc Hub Res Res Maximum Alert Level 5 | . . . . . 1 . . . . . . 1 1 1 2 2 5 Low Security (%) 73 | 100 100 100 . 100 96 100 100 100 100 100 100 54 78 82 50 . 4 Level 1 15 | . . . . . 3 . . . . . . 45 21 17 26 80 29 Level 2 3 | . . . . . . . . . . . . . . . 23 19 10 Level 3 . | . . . . . . . . . . . . . . . . . 5 Level 4 2 | . . . . . . . . . . . . . . . . . 19 Level 5 1 | . . . . . . . . . . . . . . . . . 9 High Security 2 | . . . . . . . . . . . . . . . . . 20 Max Security . | . . . . . . . . . . . . . . . . . . Peak Influence 1976 | . 40 95 . . 210 89 80 42 30 2 163 375 255 204 678 440 1976 Initial 330 | . . . . . . 17 . 32 . 2 . 65 196 86 60 330 230 Average 195 | . 7 14 . . 105 17 16 6 4 . 44 217 168 161 248 316 947 Influence Increases 7770 | . 152 100 . . 521 317 378 123 221 . 423 862 319 168 1156 580 2450 Destroy 0b10 Robot/C 3500 | . 100 80 . . 240 140 180 80 60 . 240 440 140 80 360 280 1080 Destroy 0b10 Robot/NC 455 | . 25 5 . . 45 25 30 10 65 . 10 35 10 . 25 50 120 Destroy Leader 736 | . 26 10 . . 82 56 66 12 24 . 60 62 . . 106 52 180 Allied During Kill 746 | . . 5 . . . . . . . . . 132 131 80 398 . . Trap Triggered on 0b10 10 | . . . . . . . 10 . . . . . . . . . . Successful Hack 242 | . . . . . 10 32 39 . 34 . 4 58 12 . 20 31 2 Disable Machine 285 | . . . . . 60 15 . 15 . . 75 15 . . 45 15 45 Anti-Garrison Action 300 | . . . . . . . . . . . . . . . 150 150 . Destroy Structure 866 | . 1 . . . 39 4 8 6 8 . 4 . 26 8 52 2 708 Partial Spotted 15 | . . . . . . 15 . . . . . . . . . . . Lose Combat Pursuer 615 | . . . . . 45 30 45 . 30 . 30 120 . . . . 315 Influence Decreases 5894 | . 152 100 . . 482 354 312 191 214 7 290 644 453 211 700 800 984 Entered New Map 1013 | . . . . . . 22 2 36 . 5 . 68 155 131 114 300 180 Time Decay 3970 | . 152 100 . . 441 332 310 155 214 2 280 446 198 50 286 470 534 Lost Part 390 | . . . . . 10 . . . . . 10 50 . 10 10 30 270 Lost Ally 340 | . . . . . . . . . . . . 80 100 20 140 . . Purge Threat 181 | . . . . . 31 . . . . . . . . . 150 . . Squads Dispatched 83 | . 1 1 . . 5 10 12 3 4 . 3 3 . . 8 10 23 Investigation 10 | . . . . . 1 . 1 1 . . 1 2 . . . 4 . Extermination 19 | . . . . . . 3 4 1 3 . 2 . . . 1 1 4 Reinforcement 27 | . 1 . . . 3 3 4 1 1 . . 1 . . 4 5 4 Assault 18 | . . 1 . . . . . . . . . . . . 2 . 15 Garrison 9 | . . . . . 1 4 3 . . . . . . . 1 . . Intercept . | . . . . . . . . . . . . . . . . . . Searches Triggered . | . . . . . . . . . . . . . . . . . . Construction Impeded 2 | . . . . . . . . . . . . . . . . . 2 Haulers Reinforced 11 | . . . . . . 1 1 1 . . . . . . 3 4 1 Active Scanning Responses . | . . . . . . . . . . . . . . . . . . Cargo Convoy Interrupts . | . . . . . . . . . . . . . . . . . . Stealth | -11 -10 -10 -10 -9 -8 -7 -6 -5 -4 -4 -4 -4 -4 -4 -4 -3 -2 --------- Run | Yrd Mat Min Exi Min Mat Fac Fac Fac Fac Was Fac Ext Cet Arc Hub Res Res Distress Signals 31 | . . . . 1 5 . . . 2 . . 1 2 . 5 9 6 Communications Jammed . | . . . . . . . . . . . . . . . . . . Distress Signals . | . . . . . . . . . . . . . . . . . . Times Spotted 347 | . 12 6 . 2 20 27 28 15 9 6 19 32 10 4 31 30 96 Peak Tracking Total 18 | . 3 4 . 2 6 5 4 5 3 6 3 7 5 3 10 6 18 Tactical Retreats 26 | . . . . . 2 2 3 . 2 . 2 4 . . . . 11 Traps | -11 -10 -10 -10 -9 -8 -7 -6 -5 -4 -4 -4 -4 -4 -4 -4 -3 -2 ------- Run | Yrd Mat Min Exi Min Mat Fac Fac Fac Fac Was Fac Ext Cet Arc Hub Res Res Traps Triggered 13 | . 3 . . . 1 . 1 . 2 . 2 3 . . . . 1 Indirectly . | . . . . . . . . . . . . . . . . . . Trap Hack Attempts . | . . . . . . . . . . . . . . . . . . Triggered . | . . . . . . . . . . . . . . . . . . Disarmed . | . . . . . . . . . . . . . . . . . . Reprogrammed . | . . . . . . . . . . . . . . . . . . Reused 1 | . . . . . . . 1 . . . . . . . . . . Traps Reconfigurated 12 | . . . . . . 2 5 2 . . 3 . . . . . . Traps Extracted . | . . . . . . . . . . . . . . . . . . Installed . | . . . . . . . . . . . . . . . . . . Triggered 1 | . . . . . . . 1 . . . . . . . . . . Machines | -11 -10 -10 -10 -9 -8 -7 -6 -5 -4 -4 -4 -4 -4 -4 -4 -3 -2 ---------- Run | Yrd Mat Min Exi Min Mat Fac Fac Fac Fac Was Fac Ext Cet Arc Hub Res Res Machines Disabled 21 | . . . . . 4 1 . 1 . . 5 1 . . 4 2 3 Max in Single Turn 1 | . . . . . 1 1 . 1 . . 1 1 . . 1 1 1 Garrison Access 7 | . . . . . 1 . 1 . . . 1 . . . 2 1 1 Machines Repaired . | . . . . . . . . . . . . . . . . . . Machines Dismantled . | . . . . . . . . . . . . . . . . . . Machines Sabotaged . | . . . . . . . . . . . . . . . . . . Overloaded Fab Kills . | . . . . . . . . . . . . . . . . . . Hacking | -11 -10 -10 -10 -9 -8 -7 -6 -5 -4 -4 -4 -4 -4 -4 -4 -3 -2 --------- Run | Yrd Mat Min Exi Min Mat Fac Fac Fac Fac Was Fac Ext Cet Arc Hub Res Res Machines Accessed 83 | . 6 . 1 . 4 8 11 5 6 . 8 14 3 . 5 7 5 Terminals 49 | . 4 . . . 2 3 6 3 4 . 4 12 3 . 4 3 1 Fabricators 2 | . . . . . . 1 . . . . . . . . . 1 . Repair Stations 4 | . . . . . . . 1 1 . . . . . . . 1 1 Recycling Units 8 | . 2 . . . . 1 1 . 1 . 1 2 . . . . . Scanalyzers 9 | . . . . . 1 2 2 . 1 . 1 . . . . 1 1 Garrison Access 10 | . . . . . 1 1 1 1 . . 2 . . . 1 1 2 Total Hacks 171 | . 14 . 1 . 8 17 23 9 13 . 17 25 10 . 14 14 6 Successful 60 | . 5 . 1 . 5 9 9 . 4 . 5 9 3 . 6 2 2 Failed 108 | . 9 . . . 2 7 14 9 9 . 12 16 7 . 8 12 3 Catastrophic 23 | . 1 . . . 1 1 2 2 1 . 1 4 1 . 1 5 3 Database Lockouts 3 | . . . . . 1 1 . . . . . . . . . . 1 Manual 48 | . 1 . 1 . 2 4 5 6 3 . . 11 1 . 8 5 1 Terminals 103 | . 9 . . . 5 8 11 5 6 . 7 22 10 . 13 6 1 Fabricators 5 | . . . . . . 1 . . . . . . . . . 4 . Repair Stations 6 | . . . . . . . 2 2 . . . . . . . 1 1 Recycling Units 14 | . 5 . . . . 1 2 . 2 . 1 3 . . . . . Scanalyzers 30 | . . . . . 2 6 6 . 5 . 7 . . . . 2 2 Garrison Access 12 | . . . . . 1 1 2 2 . . 2 . . . 1 1 2 Terminal Hacks 21 | . 3 . 1 . 3 1 3 . . . . 5 3 . 2 . . Record 4 | . . . . . . . . . . . . 1 3 . . . . Prototype ID Bank 3 | . 1 . . . 1 . . . . . . . . . 1 . . Open Door 4 | . . . . . . . . . . . . 4 . . . . . Terminal Index 2 | . 1 . . . . . 1 . . . . . . . . . . Scanalyzer Index 2 | . . . . . 1 1 . . . . . . . . . . . Alert Level 2 | . 1 . . . . . 1 . . . . . . . . . . Unreport Threat 2 | . . . . . 1 . . . . . . . . . 1 . . Locate Traps 1 | . . . . . . . 1 . . . . . . . . . . Proto ID Catalog 1 | . . . 1 . . . . . . . . . . . . . . Fabricator Hacks 1 | . . . . . . . . . . . . . . . . 1 . Build 1 | . . . . . . . . . . . . . . . . 1 . Repair Station Hacks 2 | . . . . . . . 2 . . . . . . . . . . Scan Component 1 | . . . . . . . 1 . . . . . . . . . . Repair 1 | . . . . . . . 1 . . . . . . . . . . Recycling Unit Hacks 5 | . 2 . . . . 1 . . . . . 2 . . . . . Retrieve Components 5 | . 2 . . . . 1 . . . . . 2 . . . . . Scanalyzer 16 | . . . . . 1 5 1 . 3 . 4 . . . . 1 1 Retrieve Study 16 | . . . . . 1 5 1 . 3 . 4 . . . . 1 1 Garrison Access Hacks 5 | . . . . . 1 . 1 . . . 1 . . . 1 . 1 Seal Access 5 | . . . . . 1 . 1 . . . 1 . . . 1 . 1 Unauthorized Hacks 10 | . . . . . . 2 2 . 1 . . 2 . . 3 . . Terminals 9 | . . . . . . 1 2 . 1 . . 2 . . 3 . . Botnet 8 | . . . . . . 1 2 . 1 . . 2 . . 2 . . Detonate 1 | . . . . . . . . . . . . . . . 1 . . Fabricators 1 | . . . . . . 1 . . . . . . . . . . . Liberate 1 | . . . . . . 1 . . . . . . . . . . . Repair Stations . | . . . . . . . . . . . . . . . . . . Recycling Units . | . . . . . . . . . . . . . . . . . . Scanalyzers . | . . . . . . . . . . . . . . . . . . Garrison Access . | . . . . . . . . . . . . . . . . . . Data Cores Recovered 2 | . . . . . . 1 . 1 . . . . . . . . . Used 1 | . . . . . . . . 1 . . . . . . . . . Hacking Detections 66 | . 5 . . . 2 6 8 5 6 . 6 11 3 . 3 7 4 Full Trace Events 4 | . . . . . . . 1 1 . . . 1 . . . 1 . Feedback Events . | . . . . . . . . . . . . . . . . . . Feedback Blocked . | . . . . . . . . . . . . . . . . . . Robot Schematics Acquired . | . . . . . . . . . . . . . . . . . . Robots Built . | . . . . . . . . . . . . . . . . . . Authchips . | . . . . . . . . . . . . . . . . . . Time . | . . . . . . . . . . . . . . . . . . Total Robot Build Rating . | . . . . . . . . . . . . . . . . . . Part Schematics Acquired . | . . . . . . . . . . . . . . . . . . Parts Built 1 | . . . . . . . . . . . . . . . . 1 . Authchips . | . . . . . . . . . . . . . . . . . . Time 204 | . . . . . . . . . . . . . . . . 204 . Total Part Build Rating 8 | . . . . . . . . . . . . . . . . 8 . Part Studies Acquired 16 | . . . . . 1 5 1 . 3 . 4 . . . . 1 1 Parts Repaired 1 | . . . . . . . 1 . . . . . . . . . . Time 44 | . . . . . . . 44 . . . . . . . . . . Parts Recycled . | . . . . . . . . . . . . . . . . . . Recycled Matter . | . . . . . . . . . . . . . . . . . . Retrieved Matter . | . . . . . . . . . . . . . . . . . . Retrieved Components 22 | . 9 . . . . 4 . . . . . 9 . . . . . Parts Scanalyzed . | . . . . . . . . . . . . . . . . . . Part Schematics Acquired . | . . . . . . . . . . . . . . . . . . Parts Damaged . | . . . . . . . . . . . . . . . . . . Bothacking | -11 -10 -10 -10 -9 -8 -7 -6 -5 -4 -4 -4 -4 -4 -4 -4 -3 -2 ------------ Run | Yrd Mat Min Exi Min Mat Fac Fac Fac Fac Was Fac Ext Cet Arc Hub Res Res Used RIF Installer . | . . . . . . . . . . . . . . . . . . Robots Hacked 3 | . . . . . . . . 1 . . . 1 1 . . . . Non-combat . | . . . . . . . . . . . . . . . . . . Combat 3 | . . . . . . . . 1 . . . 1 1 . . . . Robot Hacks Applied 3 | . . . . . . . . 1 . . . 1 1 . . . . parse_system 3 | . . . . . . . . 1 . . . 1 1 . . . . Relay Couplers Released 3 | . . . . . . . . . . . . . . . 3 . . Machine Destruction 3 | . . . . . . . . . . . . . . . 3 . . Fabnet Peak Effective % . | . . . . . . . . . . . . . . . . . . Robots Rewired 7 | . . . . . . . . . . . . 7 . . . . . Allies Hacked . | . . . . . . . . . . . . . . . . . . Hacks Repelled . | . . . . . . . . . . . . . . . . . . Allies | -11 -10 -10 -10 -9 -8 -7 -6 -5 -4 -4 -4 -4 -4 -4 -4 -3 -2 -------- Run | Yrd Mat Min Exi Min Mat Fac Fac Fac Fac Was Fac Ext Cet Arc Hub Res Res Total Allies 27 | . . 4 . 2 . 3 . . . . . 13 5 . . . . Largest Group 10 | . . 4 2 4 . 3 . . . . . 9 10 9 7 . . Highest-Rated Group 776 | . . 71 32 73 . 48 . . . . . 477 776 723 526 . . Highest-Rated Ally 159 | . . 31 16 31 . 16 . . . . . 159 159 159 96 . . Total Orders . | . . . . . . . . . . . . . . . . . . Ally Attacks 180 | . . . . 11 . . . . . . . 27 53 22 67 . . Total Damage 7277 | . . . . 65 . . . . . . . 865 1994 1161 3192 . . Kills 27 | . . . . . . . . . . . . 6 5 4 12 . . Allies Corrupted 2 | . . . . . . . . . . . . . . . 2 . . Allies Melted . | . . . . . . . . . . . . . . . . . . Intel | -11 -10 -10 -10 -9 -8 -7 -6 -5 -4 -4 -4 -4 -4 -4 -4 -3 -2 ------- Run | Yrd Mat Min Exi Min Mat Fac Fac Fac Fac Was Fac Ext Cet Arc Hub Res Res Active Infowar (turns) 191 | . . . . . . 189 . . . . . . . . . 2 . Traps 189 | . . . . . . 189 . . . . . . . . . . . ECM 2 | . . . . . . . . . . . . . . . . 2 . Robot Analysis Total . | . . . . . . . . . . . . . . . . . . Derelict Logs Recovered 3 | . . 2 . 1 . . . . . . . . . . . . . Drone Launches . | . . . . . . . . . . . . . . . . . . Drone Recoveries . | . . . . . . . . . . . . . . . . . . Exploration | -11 -10 -10 -10 -9 -8 -7 -6 -5 -4 -4 -4 -4 -4 -4 -4 -3 -2 ------------- Run | Yrd Mat Min Exi Min Mat Fac Fac Fac Fac Was Fac Ext Cet Arc Hub Res Res Turns Passed 15415 | 59 689 619 389 214 1200 1395 1897 830 1332 138 1303 1101 406 114 621 1189 1919 Spaces Moved 11198 | 42 439 459 253 173 916 1080 1491 610 1008 132 1040 740 219 81 485 867 1163 Core 9 | 9 . . . . . . . . . . . . . . . . . Treads . | . . . . . . . . . . . . . . . . . . Legs 10817 | 33 439 459 253 142 575 1080 1491 610 1008 132 1040 740 219 81 485 867 1163 Wheels 372 | . . . . 31 341 . . . . . . . . . . . . Hover . | . . . . . . . . . . . . . . . . . . Flight . | . . . . . . . . . . . . . . . . . . Fastest Speed 50 | 50 120 120 120 95 80 105 105 105 105 105 105 105 108 108 108 105 97 Average Speed 107 | 105 120 120 120 115 108 105 105 105 105 105 105 106 108 108 108 105 102 Slowest Speed 190 | 120 120 120 120 120 190 110 105 105 105 105 175 108 108 108 108 108 176 Overloaded Moves . | . . . . . . . . . . . . . . . . . . Propulsion Burnouts . | . . . . . . . . . . . . . . . . . . Robots Hopped . | . . . . . . . . . . . . . . . . . . Potential Cave-ins . | . . . . . . . . . . . . . . . . . . Cave-ins Triggered . | . . . . . . . . . . . . . . . . . . Exploration Rate (%) 47 | 3 67 88 62 32 77 22 33 13 23 90 32 71 68 85 39 25 30 Regions Visited 17 Branch Regions 7 Pre-discovered Areas 2 | . . 2 . . . . . . . . . . . . . . . Known Exits Taken 3 | . . . . . . . . . . . 1 . . . 1 1 . Unknown Exits Taken 12 | 1 1 1 1 1 1 1 1 1 . . . 1 1 1 . . . Scrap Searched 2 | . . 2 . . . . . . . . . . . . . . . Spaces Dug 114 | . 1 . . . 9 4 8 3 4 . 2 . . . 2 1 80 Terrain Destroyed 413 | . 1 . . . 38 4 8 3 4 . 2 . . . 2 1 350 Melee 31 | . 1 . . . 4 4 8 3 4 . 2 . . . 2 1 2 Projectile . | . . . . . . . . . . . . . . . . . . AOE 382 | . . . . . 34 . . . . . . . . . . . 348 Terrain Rammed . | . . . . . . . . . . . . . . . . . . Walls Destroyed . | . . . . . . . . . . . . . . . . . . Machines Disabled . | . . . . . . . . . . . . . . . . . . Actions | -11 -10 -10 -10 -9 -8 -7 -6 -5 -4 -4 -4 -4 -4 -4 -4 -3 -2 --------- Run | Yrd Mat Min Exi Min Mat Fac Fac Fac Fac Was Fac Ext Cet Arc Hub Res Res Total 13774 | 55 547 507 339 181 1048 1285 1768 763 1240 131 1198 1011 372 103 546 1020 1660 Wait 1570 | . 55 34 83 5 52 141 199 104 170 . 81 124 133 19 25 41 304 Move 11181 | 41 438 458 252 172 915 1079 1490 609 1008 131 1038 739 218 80 484 866 1163 Hop . | . . . . . . . . . . . . . . . . . . Pick Up 84 | 8 9 2 2 . 9 8 6 3 5 . 9 4 2 . 1 8 8 Fast Attach 75 | 4 2 . . . 8 5 6 3 8 . 7 2 2 . 3 14 11 Attach 52 | 2 . 1 . 1 5 3 3 3 3 . 2 4 . 1 . 5 19 Detach 12 | . . . . . 1 3 . . 1 . . . 1 . . . 6 Swap 85 | . 5 1 . . 4 5 11 7 2 . 12 7 1 . 3 15 12 Drop 106 | . 8 1 2 . 10 14 10 5 8 . 10 4 2 . 3 21 8 Fire 57 | . 23 . . . 11 . . . . . . . . . . . 23 Melee 450 | . 5 10 . 3 33 27 40 29 32 . 37 56 13 3 27 50 85 Ram . | . . . . . . . . . . . . . . . . . . Kick 13 | . 2 . . . . . 3 . 3 . 1 1 . . . . 3 Crush . | . . . . . . . . . . . . . . . . . . Escape Stasis 29 | . . . . . . . . . . . 1 10 . . . . 18 Rewire 60 | . . . . . . . . . . . . 60 . . . . . Trap . | . . . . . . . . . . . . . . . . . . Miscellaneous . | . . . . . . . . . . . . . . . . . . Route ------- -11/Scrapyard -10/Materials (discovered 3 exits: *Mat x2 / [*Min]) -10/Mines (discovered 4 exits: *Mat x2 / *Exi / [*Sub]) -10/Exiles -9/Mines -8/Materials (discovered 4 exits: *Fac x3 / *Sto) -7/Factory (discovered 2 exits: *Fac / [*Low]) -6/Factory (discovered 3 exits: *Fac / [*Low x2]) -5/Factory -4/Factory -4/Waste -4/Factory (discovered 3 exits: *Res x2 / *Ext) -4/Extension (discovered 2 exits: *Res / *Cet) -4/Cetus (discovered 2 exits: *Res / [*Arc]) -4/Archives (discovered 3 exits: *Res / *Hub x2) -4/Hub_04(d) (discovered 2 exits: *Res x2) -3/Research (discovered 2 exits: *Res x2) -2/Research History --------- Turn | Location | Event 8 | -11/Scrapyard | Discovered new exit (range 15) 60 | -11/Scrapyard | Entered Materials 193 | -10/Materials | Discovered new exit (range 9) 313 | -10/Materials | Build established: Mutant 374 | -10/Materials | Discovered new exit (range 15) 576 | -10/Materials | Discovered new exit (range 16) 749 | -10/Materials | Entered Mines 779 | -10/Mines | Learned location of Storage (-8) 784 | -10/Mines | A weapon hastily lodged in a ceiling crevice suddenly fell to the ground 875 | -10/Mines | Met a Derelict testing a Signal Generator 1028 | -10/Mines | Identified exit to Materials 1068 | -10/Mines | Received a Rocket Launcher from a helpful Derelict 1177 | -10/Mines | Discovered exit to Materials (range 14) 1198 | -10/Mines | Assisted by bots powering up and referring to "LRC-V3" 1251 | -10/Mines | Discovered new exit (range 5) 1362 | -10/Mines | Deemed a non-threat by the Exiles lab entrance 1363 | -10/Mines | Discovered new exit (range 5) 1368 | -10/Mines | Entered Exiles 1368 | -10/Exiles | Accompanied by 2 allies 1397 | -10/Exiles | Met 8R-AWN 1418 | -10/Exiles | Met EX-HEX 1452 | -10/Exiles | Met EX-BIN 1504 | -10/Exiles | Aligned with FarCom system 1505 | -10/Exiles | Given EX-Vault access code 1536 | -10/Exiles | Opened EX-Vault 1546 | -10/Exiles | Found Trap Reconfigurator 1581 | -10/Exiles | Warned to stay clear of 0b10 Research branches 1589 | -10/Exiles | Exiles lab attacked by MAIN.C 1659 | -10/Exiles | Discovered new exit (range 14) 1757 | -10/Exiles | Left Exiles lab with Trap Reconfigurator 1757 | -10/Exiles | Entered Mines 1757 | -9/Mines | Accompanied by 2 allies 1916 | -9/Mines | Assembled infested the area 1921 | -9/Mines | Assisted by a Guerilla fighting off Assembled 1938 | -9/Mines | Core integrity fell below 50% 1955 | -9/Mines | Discovered new exit (range 14) 1971 | -9/Mines | Entered Materials 1971 | -8/Materials | Evolved 4 slots: Propulsion x1, Utility x2, Weapon x1 1972 | -8/Materials | Identified exit to Storage 1996 | -8/Materials | Lost 5 allies 2196 | -8/Materials | Met 7R-MNS 2224 | -8/Materials | Discovered new exit (range 14) 2318 | -8/Materials | Garrison activated, responded to threat 2534 | -8/Materials | Build established: Gladiator 2716 | -8/Materials | Discovered new exit (range 4) 2861 | -8/Materials | Discovered new exit (range 15) 2993 | -8/Materials | Central database locked down 3171 | -8/Materials | Entered Factory 3171 | -7/Factory | Evolved 2 slots: Utility x2 3172 | -7/Factory | Caught up to 7R-MNS 3279 | -7/Factory | Garrison activated, responded to threat 3511 | -7/Factory | Garrison activated, responded to threat 3618 | -7/Factory | Discovered new exit (range 16) 4010 | -7/Factory | Discovered new exit (range 8) 4474 | -7/Factory | Central database locked down 4566 | -7/Factory | Entered another Factory area 4566 | -6/Factory | Evolved 2 slots: Utility x1, Weapon x1 4567 | -6/Factory | Caught up to 7R-MNS 4772 | -6/Factory | Discovered new exit (range 6) 4859 | -6/Factory | Build established: Scientist-Gladiator 5026 | -6/Factory | Discovered new exit (range 6) 5120 | -6/Factory | Garrison activated, responded to threat 5151 | -6/Factory | Discovered new exit (range 10) 5615 | -6/Factory | Repaired Hrd. Heavy Armor Plating 5663 | -6/Factory | Spotted B-75 Beast 6463 | -6/Factory | Entered another Factory area 6463 | -5/Factory | Evolved 2 slots: Propulsion x1, Utility x1 6464 | -5/Factory | Caught up to 7R-MNS 6784 | -5/Factory | Discovered new exit (range 9) 6965 | -5/Factory | System corruption reached 10% 7293 | -5/Factory | Entered another Factory area 7293 | -4/Factory | Evolved 2 slots: Utility x2 7294 | -4/Factory | Caught up to 7R-MNS 8038 | -4/Factory | 7R-MNS successfully reached the Upper Caves 8516 | -4/Factory | Found Imp. Powered Armor 8519 | -4/Factory | Found Imp. Powered Armor 8522 | -4/Factory | Found Imp. Powered Armor 8525 | -4/Factory | Found Imp. Powered Armor 8625 | -4/Factory | Sucked down chute 8625 | -4/Factory | Entered Waste 8640 | -4/Waste | EMP discharged 8643 | -4/Waste | Spotted C-40 Crusher 8645 | -4/Waste | Spotted C-40 Crusher 8648 | -4/Waste | Spotted C-40 Crusher 8676 | -4/Waste | Spotted C-40 Crusher 8720 | -4/Waste | Spotted C-40 Crusher 8721 | -4/Waste | Spotted C-40 Crusher 8740 | -4/Waste | EMP discharged 8740 | -4/Waste | System corruption reached 10% 8751 | -4/Waste | Discovered new exit (range 12) 8763 | -4/Waste | Entered Factory 9613 | -4/Factory | Discovered new exit (range 7) 9629 | -4/Factory | Identified exit to Research 9949 | -4/Factory | Discovered exit to Research (range 9) 10051 | -4/Factory | Discovered new exit (range 15) 10065 | -4/Factory | Identified exit to Extension 10066 | -4/Factory | Entered Extension 10483 | -4/Extension | Spotted B-86 Titan 10527 | -4/Extension | Spotted B-86 Titan 10559 | -4/Extension | Lost 3 allies 10573 | -4/Extension | Lost 3 parts (3u) 10624 | -4/Extension | Rescued a captive Derelict 10652 | -4/Extension | Rescued a captive Derelict 10653 | -4/Extension | Rescued a captive Derelict 10743 | -4/Extension | Rescued a captive Derelict 10744 | -4/Extension | Rescued a captive Derelict 11078 | -4/Extension | Rescued A7 11120 | -4/Extension | Discovered exit to Research (range 10) 11121 | -4/Extension | Discovered new exit (range 6) 11167 | -4/Extension | Entered Cetus 11167 | -4/Cetus | Accompanied by 9 allies (A7) 11172 | -4/Cetus | Acquired a Cetus Manufacturing Module code from A7 11188 | -4/Cetus | Spotted Cetus Guard 11188 | -4/Cetus | Spotted Cetus Guard 11190 | -4/Cetus | Spotted Cetus Guard 11190 | -4/Cetus | Spotted Cetus Guard 11202 | -4/Cetus | Destroyed Cetus Guard 11209 | -4/Cetus | Destroyed Cetus Guard 11220 | -4/Cetus | Allies destroyed Cetus Guard 11250 | -4/Cetus | Lost 4 allies 11281 | -4/Cetus | Started Cetus Manufacturing Module 11306 | -4/Cetus | Manufactured an Enhanced Grunt 11331 | -4/Cetus | Manufactured an Enhanced Grunt 11356 | -4/Cetus | Manufactured an Enhanced Grunt 11381 | -4/Cetus | Manufactured an Enhanced Grunt 11406 | -4/Cetus | Manufactured an Enhanced Grunt 11427 | -4/Cetus | Discovered new exit (range 15) 11474 | -4/Cetus | Spotted Cetus Guard 11475 | -4/Cetus | Spotted Cetus Guard 11475 | -4/Cetus | Spotted Cetus Guard 11476 | -4/Cetus | Spotted Cetus Guard 11484 | -4/Cetus | Discovered exit to Research (range 16) 11484 | -4/Cetus | Allies destroyed Cetus Guard 11484 | -4/Cetus | Allies destroyed Cetus Guard 11492 | -4/Cetus | Allies destroyed Cetus Guard 11493 | -4/Cetus | Destroyed Cetus Guard 11497 | -4/Cetus | Met Revision 17 11573 | -4/Cetus | Entered Archives 11573 | -4/Archives | Accompanied by 9 allies (A7) 11601 | -4/Archives | Discovered exit to Research (range 14) 11620 | -4/Archives | Discovered new exit (range 14) 11645 | -4/Archives | Build established: Commander-Gladiator 11650 | -4/Archives | Discovered new exit (range 15) 11687 | -4/Archives | Entered Hub_04(d) 11687 | -4/Hub_04(d) | Accompanied by 7 allies 11772 | -4/Hub_04(d) | Found Prototype Launcher 11772 | -4/Hub_04(d) | Identified Com. Tesla Bomb Launcher 12147 | -4/Hub_04(d) | Spotted B-86 Titan 12148 | -4/Hub_04(d) | Discovered exit to Research (range 8) 12164 | -4/Hub_04(d) | Allies destroyed B-86 Titan 12173 | -4/Hub_04(d) | Garrison activated, responded to threat 12179 | -4/Hub_04(d) | Discovered exit to Research (range 15) 12305 | -4/Hub_04(d) | Build established: Scientist-Gladiator 12308 | -4/Hub_04(d) | Entered Research 12308 | -3/Research | Evolved 2 slots: Propulsion x1, Weapon x1 12315 | -3/Research | Lost 3 allies 12432 | -3/Research | Found Prototype Processor 12432 | -3/Research | Identified Exp. Signal Interpreter 12450 | -3/Research | Found Exp. Signal Interpreter 12508 | -3/Research | Revision forces began assault on 0b10 12561 | -3/Research | Met up with Revision 17++ 12716 | -3/Research | Discovered new exit (range 14) 12881 | -3/Research | Found Prototype Device 12881 | -3/Research | Identified Exp. ECM Suite 13008 | -3/Research | Research terminal network offline 13061 | -3/Research | Spotted Striker 13061 | -3/Research | Spotted Striker 13068 | -3/Research | Destroyed Striker 13107 | -3/Research | Lost 4 allies 13126 | -3/Research | Discovered new exit (range 7) 13150 | -3/Research | Found Prototype Launcher 13150 | -3/Research | Identified Adv. Micro-nuke Launcher 13159 | -3/Research | Fabricated Centrium Medium Armor Plating? 13163 | -3/Research | Found Adv. Micro-nuke Launcher 13166 | -3/Research | Found Adv. Micro-nuke Launcher 13181 | -3/Research | Identified exit to Research 13340 | -3/Research | Murdered Revision 17++ 13446 | -3/Research | Build established: Scavenger-Gladiator 13497 | -3/Research | Entered another Research area 13497 | -2/Research | Evolved 2 slots: Utility x2 13655 | -2/Research | Central database locked down 14151 | -2/Research | Build established: Scientist-Gladiator 14221 | -2/Research | Found Prototype Device 14221 | -2/Research | Identified Exp. EM Disruption Field 14257 | -2/Research | Found Exp. Signal Interpreter 14483 | -2/Research | Destroyed 9 combat bots 14805 | -2/Research | Lost 5 parts (1p1n3u) 14857 | -2/Research | Destroyed 9 combat bots 14997 | -2/Research | First assault squad dispatched 15016 | -2/Research | High security lockdown imminent 15096 | -2/Research | High security lockdown engaged 15318 | -2/Research | System corruption reached 10% 15367 | -2/Research | Lost 6 parts (1n4u1w) 15384 | -2/Research | Scanned by Researcher 15386 | -2/Research | Spotted Investigator 15408 | -2/Research | Core integrity fell below 50% 15414 | -2/Research | Core integrity fell below 20% 15416 | -2/Research | Destroyed by G-73 Enforcer with Phase Gun Last Messages --------------- 15412_ Investigator is analyzing... 15413_ G-73 Enforcer heat short circuits Phase Gun. 15413_ P-80 Master resets P-80 Master, system corruption cleaned. 15413_ P-80 Master stasis bubble strength at 12. 15414_ G-73 Enforcer heat short circuits Myomer Leg. 15414_ Penetrated by Slug. 15414_ G-73 Enforcer overheating. 15414_ P-80 Master stasis bubble strength at 4. 15415_ G-73 Enforcer heat short circuits Myomer Leg. 15415_ M-36 Artificer repairs G-73 Enforcer. 15415_ G-73 Enforcer overheating. 15415_ P-80 Master stasis bubble bursts. 15415_ Held in stasis. 15415_ Investigator is analyzing... 15416_ System corrupted: Energy discharge (-22). 15416_ G-73 Enforcer overheating. Map ----- +----------------------------------------------------+ | | | | | | | | | | | | | | | | | | | | | | | ?????????????????????????????????????????????????? | | ??????????????????????#????????????????##??###??## | | ?????????????????????? ????????????????# ? ? # | | ??????????????????????? ?????????#?????# # | | ??????????????????????? ????????? ?????# """"" # | | ??????????????????????? ????????? ?????# """"" # | | ??????????????????????? #???????# #????# """"" # | | ?????????????????????### ######## #????# # | | ???????????????????### ## #????? # | | ???????????????????# # ##?????? ??# | | ???????????????????### g # #########+##### | | ???????????????????# [bg + | | ???????????????????# = h/#pm ## #### | | ???????????????????# / glggp p% % #??# | | ???????????????????# * @gp# ## #??# | | ???????????????????# c p # # # #### | | ???????????????????# % # ## | | ???????????????????### # ## | | ?????????????????????# | | ????????????????????? ### # | | ????????????????????##??##### | | ??????????????????????????????! """"""" | | ??????????????????????????????! """"""" | | ??????????????????????????????? """"""" | | ??????????????????????????????? | | ???????????????????????????????? ! | | ????????????????????????????????? | | ???????????????????????????????????#############+# | | ???????????????????????????????????????????# | | ???????????????????????????????????????????# | | ???????????????????????????????????????????# """" | | ???????????????????????????????????????????#= """" | | ???????????????????????????????????????????# """" | | ???????????????????????????????????????????# | | ???????????????????????????????????????????# ] | | ???????????????????????????????????????????# | | ???????????????????????????????????????????##+##+# | | ????????????????????????????????????????????# = | | ????????????????????????????????????????????# | +----------------------------------------------------+ Best States ------------- Heat Dissipation 49 Energy Generation 29 Energy Capacity 750 Matter Stores 300 Matter Capacity 300 Sight Range 16 Terrain Scan Density 10 Armor Coverage 1600 Core Shielding 30 Melee Speed Boost 50 Evasion (%) 82 Targeting Accuracy 8 Melee Accuracy 20 Core Analysis 9 Armor Integrity Analysis 40 Force Boost 20 Item Schematics ----------------- None Robot Schematics ------------------ None Fabricated ------------ Centrium Medium Armor Plating | x1 | -3/Research | Preloaded Repaired ---------- Hrd. Heavy Armor Plating | 23% | -6/Factory Studied --------- Carbon-fiber Leg | -8/Materials | Hacked Imp. Carbon-fiber Leg | -7/Factory | Hacked Katana | -7/Factory | Hacked Hvy. Mace | -7/Factory | Hacked Maul | -7/Factory | Hacked Rocket Launcher | -7/Factory | Hacked Powered Hammer | -6/Factory | Hacked Myomer Leg | -4/Factory | Hacked Chainsword | -4/Factory | Hacked Hvy. Rocket Launcher | -4/Factory | Hacked Force Lance | -4/Factory | Hacked Flexi-carbon Leg | -4/Factory | Hacked Antimatter Reactor | -4/Factory | Hacked Imp. Datajack | -4/Factory | Hacked Quantum Reactor | -3/Research | Hacked Centrium Leg | -2/Research | Hacked Alien Tech Used ----------------- None Achievements -------------- Escorted To Danger Hammer Time Melee Specialist Physics Protects Challenges ------------ None Game ------ Seed FlyingClaymoresSuite Manual? 0 Play Time 02:31:41 Cumulative 393.5 hours Start 2025.11.20 @ 21:10:07 End 2025.11.20 @ 23:44:39 Sessions 1 Manual Loads 0 Difficulty Rogue Special Mode None Game No. 185 Rogue 185 Adventurer 0 Explorer 0 Win Type - Total 12 Types 9/0/2/0/0/0/0/0/0/1 Lore% 83 Gallery% 81 Achievement% 53 Wizard Run 0 Options --------- Layout 1 ASCII 0 Keyboard 0 Movement Mouse Keybinds 0 Fullscreen 1 Font 24/Smallcaps Map View 50x35 Zoom Use 0% Tactical HUD 1 Map Filters NONE Filters NONE Steam 1 RUN: 31aa10fc-48e0-4d59-a9ae-21fb23132dc1